Cogmind - Beta 13 @@@ ROGUE MODE // 2024.04.28 @ 14:20:32 Player: Lunace Result: Destroyed by G-47 Trooper with Particle Gun Performance ------------- Evolutions (2) 1000 Regions Visited (4) 800 Robots Destroyed (96) 480 Value Destroyed (2508) 2508 Prototype IDs (5) 100 Alien Tech Used (0) 0 Bonus (342) 342 TOTAL SCORE: 5230 Bonus ------- High Alert Combat Kills 401 Friendly Fire -59 Cogmind --------- Core Integrity 0/550 Matter 154/450 Energy 290/290 System Corruption 0% Temperature Cool (9) Movement Treading (160) Location -8/Materials Parts ------- > --- POWER (1) -------- Improved Deuterium Engine > --- PROPULSION (3) --- Medium Treads Medium Treads Medium Treads > --- UTILITY (3) ------ High-capacity Storage Unit Compact Matter Pod > --- WEAPON (4) ------- Minigun Axe > --- INVENTORY (20) --- Improved Deuterium Engine Improved Deuterium Engine Improved Deuterium Engine Advanced Treads Advanced Treads Advanced Treads Advanced Treads Advanced Treads Advanced Treads Medium Treads Improved Signal Interpreter Improved Signal Interpreter Precision Shock Rifle Minigun Flak Cannon Flak Cannon Peak State ------------ > --- POWER ------------ Improved Deuterium Engine > --- PROPULSION ------- Medium Treads Medium Treads Medium Treads > --- UTILITY ---------- High-capacity Storage Unit Compact Matter Pod Hardened Light Armor Plating > --- WEAPON ----------- Precision Shock Rifle Minigun Flak Cannon Missile Launcher > --- INVENTORY -------- Improved Deuterium Engine Improved Deuterium Engine Improved Deuterium Engine Advanced Treads Advanced Treads Advanced Treads Advanced Treads Advanced Treads Advanced Treads Medium Treads Improved Signal Interpreter Improved Signal Interpreter Minigun Flak Cannon Flak Cannon Axe [Rating: 41] Favorites ----------- Power Improved Deuterium Engine Engine Improved Deuterium Engine Propulsion Light Treads Treads Light Treads Wheel Armored Huge Wheel Utility Light Armor Plating Device Structural Scanner Storage High-capacity Storage Unit Processor Signal Interpreter Protection Light Armor Plating Weapon Flak Cannon Energy Gun Precision Shock Rifle Ballistic Gun Heavy Assault Rifle Ballistic Cannon Flak Cannon Launcher Rocket Launcher Slashing Weapon Axe Build | -11 -10 -9 -9 -8 ------- Run | Yrd Mat Mat Min Mat Slots Evolved 4 | . . 2 . 2 Power . | . . . . . Propulsion 1 | . . 1 . . Utility 1 | . . . . 1 Weapon 2 | . . 1 . 1 Parts Attached 84 | 7 7 14 4 52 Power 9 | 1 1 2 . 5 Engine 9 | 1 1 2 . 5 Core . | . . . . . Reactor . | . . . . . Propulsion 17 | 2 . 5 . 10 Treads 16 | 2 . 5 . 9 Leg . | . . . . . Wheel 1 | . . . . 1 Hover . | . . . . . Flight . | . . . . . Utility 20 | 2 4 1 3 10 Device 4 | 1 1 . . 2 Storage 7 | 1 2 . 1 3 Processor 1 | . 1 . . . Hackware . | . . . . . Protection 8 | . . 1 2 5 Artifact . | . . . . . Weapon 38 | 2 2 6 1 27 Energy Gun 9 | 1 . 1 . 7 Energy Cannon . | . . . . . Ballistic Gun 15 | 1 1 2 1 10 Ballistic Cannon 9 | . 1 1 . 7 Launcher 4 | . . 2 . 2 Special Weapon . | . . . . . Impact Weapon . | . . . . . Slashing Weapon 1 | . . . . 1 Piercing Weapon . | . . . . . Special Melee Weapon . | . . . . . Unidentified Prototypes 5 | . . 1 . 4 Parts Lost 10 | . 1 . . 9 Power . | . . . . . Propulsion 1 | . . . . 1 Utility 4 | . . . . 4 Weapon 5 | . 1 . . 4 Highest Loss Streak 3 | . 1 . . 3 To Critical Strikes . | . . . . . Average Slot Usage (%) 96 | . 100 99 100 93 Engine 10 | . 14 11 11 8 Treads 24 | . 28 32 33 17 Wheel 2 | . . . . 4 Device 5 | . 13 5 . 2 Storage 11 | . 14 11 11 10 Protection 8 | . . 5 11 12 Energy Gun 3 | . . . . 6 Ballistic Gun 15 | . 14 22 22 11 Ballistic Cannon 9 | . 13 6 . 11 Launcher 5 | . . 4 11 6 Naked Turns . | . . . . . Heaviest Build 80 | 13 31 39 44 80 Greatest Support 84 | 40 40 60 60 84 Greatest Overweight (x) 2 | . . . . 2 Average Overweight (x) . | . . . . 1 Largest Inventory Capacity 20 | 8 15 15 15 20 Average Capacity 15 | 7 10 15 15 19 Most Carried 20 | 2 10 14 15 20 Average Carried 12 | 1 6 9 14 15 Final Capacity 20 | 8 15 15 15 20 Final Carried 16 | 2 9 14 15 16 Class Distribution -------------------- 39% | Tank 27% | Scavenger-Tank 24% | Mutant 8% | Skirmisher Dominant Class ---------------- Mutant | -10/Materials Skirmisher | -9/Materials Scavenger-Tank | -9/Mines Tank | -8/Materials Resources | -11 -10 -9 -9 -8 ----------- Run | Yrd Mat Mat Min Mat Matter Collected 2667 | 271 367 444 103 1482 Remotely 130 | 130 . . . . Salvage Created 2446 | 61 356 563 75 1391 Parts 164 | 3 26 59 4 72 Haulers Intercepted 7 | . 2 1 . 4 Recyclers Shooed 4 | . 1 2 . 1 Parts Field Recycled . | . . . . . Retrieved Matter . | . . . . . Parts Self-Destructed . | . . . . . Prevented . | . . . . . Kills | -11 -10 -9 -9 -8 ------- Run | Yrd Mat Mat Min Mat Combat Hostiles Destroyed 67 | . 9 15 3 40 Guns 19 | . 3 4 . 12 Cannons 18 | . 6 2 . 10 AOE 30 | . . 9 3 18 Classes Destroyed 14 | 1 4 3 . 6 Worker 3 | . . 2 1 . Builder 1 | . . . . 1 Tunneler 2 | . . . . 2 Hauler 7 | . 2 1 . 4 Recycler 6 | 1 2 1 . 2 Mechanic 1 | . . . . 1 Operator 1 | . . . . 1 Watcher 8 | . 1 4 . 3 Swarmer 26 | . 6 7 . 13 Grunt 26 | . 3 4 3 16 Duelist 3 | . . 1 . 2 Protector 1 | . . . . 1 Sentry 10 | . . 3 . 7 Hunter 1 | . . . . 1 Best Kill Streak 14 | 1 4 10 3 14 Combat Bots Only 9 | . 3 7 3 9 Max Kills in Single Turn 4 | 1 1 3 2 4 Gunslinging . | . . . . . Exploded 3 | . . 3 2 3 Melee . | . . . . . Uniques/NPCs Destroyed . | . . . . . Combat | -11 -10 -9 -9 -8 -------- Run | Yrd Mat Mat Min Mat Hostile Shots Fired 284 | . 74 32 7 171 Missed 66 | . 20 7 3 36 Damage Taken 3696 | . 546 344 120 2686 Core 659 | . 81 . 22 556 Absorbed by Shields . | . . . . . Regen/Repaired (Parts) 129 | . . 129 . . Core Remaining (%) 87 | 100 67 . 94 . Volleys Fired 204 | 1 61 32 5 105 Largest 4 | 2 2 3 3 4 Hottest 177 | 60 55 78 79 177 Shots Fired 495 | 2 114 86 13 280 Gun 295 | 2 54 62 10 167 Cannon 168 | . 60 20 . 88 Launcher 32 | . . 4 3 25 Special . | . . . . . Kinetic 433 | 1 114 82 10 226 Thermal 1 | 1 . . . . Explosive 32 | . . 4 3 25 Electromagnetic 29 | . . . . 29 Robot Hit Streak 9 | 2 9 8 3 9 Robot Miss Streak 13 | . 3 3 2 13 Penetration Max . | . . . . . Secondary Targets 1 | . . . . 1 Max Gunslinging Chain 1 | . . . . 1 Shots Hit Robots 299 | 2 68 44 6 179 Core Hits 172 | 2 23 33 6 108 Critical Kills 1 | . . 1 . . Critical Parts Destroyed . | . . . . . Critical Strikes 3 | . 1 1 . 1 Destroy 1 | . . 1 . . Blast 2 | . 1 . . 1 Melee Attacks 1 | . . . . 1 Impact . | . . . . . Slashing 1 | . . . . 1 Piercing . | . . . . . Sneak Attacks 1 | . . . . 1 Combat Hostiles . | . . . . . Follow-up Attacks . | . . . . . Damage Inflicted 7854 | 21 888 1262 296 5387 Guns 2668 | 21 305 538 104 1700 Cannons 2005 | . 583 190 . 1232 Explosions 3093 | . . 534 192 2367 Melee 82 | . . . . 82 Ramming 6 | . . . . 6 Kinetic 4279 | 10 888 728 104 2549 Thermal 137 | 11 . . 72 54 Explosive 2942 | . . 534 120 2288 Electromagnetic 408 | . . . . 408 Impact . | . . . . . Slashing 82 | . . . . 82 Piercing . | . . . . . Highest Corruption . | . . . . . Average Corruption . | . . . . . Corruption Purged . | . . . . . Corruption Blocked . | . . . . . Overload Shots . | . . . . . Overflow Damage 116 | . . 8 . 108 Projectiles 5 | . . . . 5 Explosions 59 | . . 8 . 51 Melee 52 | . . . . 52 Knockbacks 34 | . 10 1 . 23 Impact . | . . . . . Kinetic 33 | . 9 1 . 23 Secondary 1 | . 1 . . . Self-Inflicted Damage 387 | . . . 69 318 Shots 11 | . . . 2 9 Rammed 2 | . . . . 2 Targets Rammed 2 | . . . . 2 Kicked . | . . . . . Crushed . | . . . . . Highest Temperature 644 | 20 90 272 62 644 Average Temperature 127 | 15 21 88 30 172 Received Heat Transfer 1110 | . 186 162 33 729 Effects 16 | . . . . 16 Shutdowns 4 | . . . . 4 Energy Bleed 2 | . . . . 2 Interference 3 | . . . . 3 Short Circuit 2 | . . . . 2 Damage (minor) 2 | . . . . 2 Damage (core) 3 | . . . . 3 Siege Activations . | . . . . . Robots Corrupted . | . . . . . Combat Hostiles . | . . . . . Parts Fried 3 | . . . . 3 Impact Corruptions . | . . . . . Robots Melted . | . . . . . Combat Hostiles . | . . . . . Parts Melted . | . . . . . Heat Transferred 175 | 25 . . 100 50 Parts Sabotaged . | . . . . . Parts Stolen . | . . . . . Parts Stripped . | . . . . . Power Chain Reactions . | . . . . . Alert | -11 -10 -9 -9 -8 ------- Run | Yrd Mat Mat Min Mat Peak Influence 1174 | 5 179 452 294 1174 Initial 175 | . 3 20 175 36 Average 354 | 2 56 150 165 633 Maximum Alert Level 4 | . . 2 1 4 Low Security (%) 49 | 100 100 68 91 5 Level 1 8 | . . 24 8 7 Level 2 30 | . . 7 . 62 Level 3 6 | . . . . 13 Level 4 5 | . . . . 11 Level 5 . | . . . . . High Security . | . . . . . Max Security . | . . . . . Squads Dispatched 13 | . 2 4 . 7 Investigation 4 | . 2 2 . . Extermination . | . . . . . Reinforcement 7 | . . 2 . 5 Assault 1 | . . . . 1 Garrison 1 | . . . . 1 Intercept . | . . . . . Searches Triggered . | . . . . . Construction Impeded 1 | . . . . 1 Haulers Reinforced . | . . . . . Active Scanning Responses . | . . . . . Cargo Convoy Interrupts . | . . . . . Stealth | -11 -10 -9 -9 -8 --------- Run | Yrd Mat Mat Min Mat Distress Signals 4 | . . 2 . 2 Communications Jammed . | . . . . . Distress Signals . | . . . . . Times Spotted 90 | . 14 16 3 57 Peak Tracking Total 8 | . 4 7 3 8 Tactical Retreats 4 | . 3 . . 1 Traps | -11 -10 -9 -9 -8 ------- Run | Yrd Mat Mat Min Mat Traps Triggered 3 | . 2 1 . . Indirectly . | . . . . . Trap Hack Attempts . | . . . . . Triggered . | . . . . . Disarmed . | . . . . . Reprogrammed . | . . . . . Reused . | . . . . . Traps Extracted . | . . . . . Installed . | . . . . . Triggered . | . . . . . Machines | -11 -10 -9 -9 -8 ---------- Run | Yrd Mat Mat Min Mat Machines Disabled 11 | . . 1 1 9 Max in Single Turn 2 | . . 1 1 2 Garrison Access 1 | . . . . 1 Machines Repaired . | . . . . . Machines Dismantled . | . . . . . Machines Sabotaged . | . . . . . Overloaded Fab Kills . | . . . . . Hacking | -11 -10 -9 -9 -8 --------- Run | Yrd Mat Mat Min Mat Machines Accessed 17 | . 7 2 . 8 Terminals 13 | . 5 1 . 7 Fabricators . | . . . . . Repair Stations 1 | . . 1 . . Recycling Units 3 | . 2 . . 1 Scanalyzers . | . . . . . Garrison Access . | . . . . . Total Hacks 44 | . 22 5 . 17 Successful 18 | . 6 3 . 9 Failed 25 | . 15 2 . 8 Catastrophic . | . . . . . Database Lockouts 1 | . 1 . . . Manual 35 | . 16 3 . 16 Terminals 37 | . 19 3 . 15 Fabricators . | . . . . . Repair Stations 2 | . . 2 . . Recycling Units 5 | . 3 . . 2 Scanalyzers . | . . . . . Garrison Access . | . . . . . Terminal Hacks 3 | . 3 . . . Robot Analysis 1 | . 1 . . . Zone Layout 2 | . 2 . . . Fabricator Hacks . | . . . . . Repair Station Hacks 2 | . . 2 . . Scan Component 1 | . . 1 . . Repair 1 | . . 1 . . Recycling Unit Hacks . | . . . . . Scanalyzer . | . . . . . Garrison Access Hacks . | . . . . . Unauthorized Hacks 13 | . 3 1 . 9 Terminals 11 | . 3 1 . 7 Assimilate 1 | . . . . 1 Botnet 10 | . 3 1 . 6 Fabricators . | . . . . . Repair Stations . | . . . . . Recycling Units 2 | . . . . 2 Monitor 1 | . . . . 1 Recyclers 1 | . . . . 1 Scanalyzers . | . . . . . Garrison Access . | . . . . . Data Cores Recovered . | . . . . . Used . | . . . . . Hacking Detections 17 | . 7 2 . 8 Full Trace Events 2 | . 1 1 . . Feedback Events . | . . . . . Feedback Blocked . | . . . . . Robot Schematics Acquired . | . . . . . Robots Built . | . . . . . Authchips . | . . . . . Time . | . . . . . Total Robot Build Rating . | . . . . . Part Schematics Acquired . | . . . . . Parts Built . | . . . . . Authchips . | . . . . . Time . | . . . . . Total Part Build Rating . | . . . . . Parts Repaired 1 | . . 1 . . Time 26 | . . 26 . . Parts Recycled . | . . . . . Recycled Matter . | . . . . . Retrieved Matter . | . . . . . Retrieved Components . | . . . . . Parts Scanalyzed . | . . . . . Part Schematics Acquired . | . . . . . Parts Damaged . | . . . . . Bothacking | -11 -10 -9 -9 -8 ------------ Run | Yrd Mat Mat Min Mat Used RIF Installer . | . . . . . Robots Hacked . | . . . . . Non-combat . | . . . . . Combat . | . . . . . Robot Hacks Applied . | . . . . . Relay Couplers Released 2 | . . . . 2 Machine Destruction 2 | . . . . 2 Fabnet Peak Effective % . | . . . . . Robots Rewired . | . . . . . Allies Hacked . | . . . . . Hacks Repelled . | . . . . . Allies | -11 -10 -9 -9 -8 -------- Run | Yrd Mat Mat Min Mat Total Allies 1 | . . . . 1 Largest Group 1 | . . . . 1 Highest-Rated Group 10 | . . . . 10 Highest-Rated Ally 10 | . . . . 10 Total Orders . | . . . . . Ally Attacks . | . . . . . Total Damage . | . . . . . Kills . | . . . . . Allies Corrupted . | . . . . . Allies Melted . | . . . . . Intel | -11 -10 -9 -9 -8 ------- Run | Yrd Mat Mat Min Mat Robot Analysis Total 1 | . 1 . . . Derelict Logs Recovered 1 | . . . 1 . Drone Launches . | . . . . . Drone Recoveries . | . . . . . Exploration | -11 -10 -9 -9 -8 ------------- Run | Yrd Mat Mat Min Mat Turns Passed 4162 | 92 910 674 538 1948 Spaces Moved 2088 | 50 403 333 312 990 Core 2 | 2 . . . . Treads 1494 | 48 403 333 312 398 Legs . | . . . . . Wheels 592 | . . . . 592 Hover . | . . . . . Flight . | . . . . . Fastest Speed 50 | 50 160 160 160 130 Average Speed 154 | 155 160 160 160 148 Slowest Speed 237 | 160 160 160 160 237 Overloaded Moves . | . . . . . Propulsion Burnouts . | . . . . . Robots Hopped . | . . . . . Cave-ins Triggered . | . . . . . Exploration Rate (%) 52 | 5 64 49 58 88 Regions Visited 4 Branch Regions 1 Pre-discovered Areas . | . . . . . Known Exits Taken . | . . . . . Unknown Exits Taken 4 | 1 1 1 1 . Scrap Searched 2 | . . . 2 . Spaces Dug 12 | . . . . 12 Terrain Destroyed 265 | . . 19 37 209 Melee . | . . . . . Projectile 9 | . . . . 9 AOE 256 | . . 19 37 200 Terrain Rammed . | . . . . . Walls Destroyed . | . . . . . Machines Disabled . | . . . . . Actions | -11 -10 -9 -9 -8 --------- Run | Yrd Mat Mat Min Mat Total 2644 | 59 565 404 343 1273 Wait 151 | . 79 13 13 46 Move 2084 | 49 402 332 311 990 Hop . | . . . . . Pick Up 43 | 2 9 6 3 23 Fast Attach 41 | 7 3 4 2 25 Attach 19 | . 1 3 1 14 Detach 12 | . . 1 2 9 Swap 24 | . 3 7 1 13 Drop 63 | . 7 6 5 45 Fire 204 | 1 61 32 5 105 Melee 1 | . . . . 1 Ram 2 | . . . . 2 Kick . | . . . . . Crush . | . . . . . Escape Stasis . | . . . . . Rewire . | . . . . . Trap . | . . . . . Miscellaneous . | . . . . . Route ------- -11/Scrapyard -10/Materials (discovered 4 exits: *Mat x2 / [*Min] / [Sub]) -9/Materials -9/Mines -8/Materials (discovered 3 exits: *Fac x3) History --------- Turn | Location | Event 10 | -11/Scrapyard | Discovered new exit (range 15) 93 | -11/Scrapyard | Entered Materials 302 | -10/Materials | Build established: Mutant 493 | -10/Materials | Discovered new exit (range 16) 601 | -10/Materials | Discovered new exit (range 14) 628 | -10/Materials | Discovered new exit (range 10) 727 | -10/Materials | Discovered new exit (range 15) 762 | -10/Materials | Central database locked down 1003 | -10/Materials | Entered another Materials area 1003 | -9/Materials | Evolved 2 slots: Propulsion x1, Weapon x1 1054 | -9/Materials | Repaired Lgt. Treads 1320 | -9/Materials | Build established: Skirmisher 1410 | -9/Materials | Discovered new exit (range 9) 1483 | -9/Materials | Destroyed 7 combat bots 1658 | -9/Materials | Build established: Scavenger-Tank 1677 | -9/Materials | Entered Mines 1797 | -9/Mines | Learned location of 1 exit from Materials 2206 | -9/Mines | Discovered new exit (range 7) 2215 | -9/Mines | Entered Materials 2215 | -8/Materials | Evolved 2 slots: Utility x1, Weapon x1 2216 | -8/Materials | Identified exit to Factory 2370 | -8/Materials | Destroyed 9 combat bots 2628 | -8/Materials | Discovered exit to Factory (range 3) 2796 | -8/Materials | Build established: Tank 3428 | -8/Materials | Discovered exit to Factory (range 15) 3665 | -8/Materials | Garrison activated, responded to threat 3713 | -8/Materials | Core integrity fell below 50% 4148 | -8/Materials | Core integrity fell below 20% 4163 | -8/Materials | Destroyed by G-47 Trooper with Particle Gun Last Messages --------------- 04137_ K-01 Serf collects debris. 04138_ ALERT: Suspicious intruders detected, dispatching Specialist reinforcements to area. 04140_ K-01 Serf collects debris. 04142_ Penetrated by Slug. 04143_ H-55 Commando reactivates. 04143_ Slug penetrates Neutrino Reactor. 04143_ K-01 Serf collects debris. 04145_ H-55 Commando knocked back. 04147_ Penetrated by Slug. 04147_ H-55 Commando knocked back. 04149_ Hrd. Light Armor Plating destroyed. 04150_ H-55 Commando destroyed. 04152_ Missile Launcher destroyed. 04154_ Critical hit (Burn: +37). 04155_ Acquired 19 matter. 04160_ Penetrated by Slug. 04160_ Flak Cannon destroyed. 04162_ Penetrated by Slug. 04162_ K-01 Serf collects debris. Map ----- +----------------------------------------------------+ | ????# [ #???????????#=! """ [[[ #????????? | | ????######+##############=! #????????? | | ??????# #????????? | | ??????# < #????????? | | ??????# ! #????????? | | ??????######+####+###### #????????? | | ??????# # ## ###########+###??#?????? | | ??????# #[ """## #????????????????# ????? | | ??????# # """## #????????????????# ### | | ??????# # """## #????????????????# | | ??????# # ## #????????????????# ## | | ??????# # "T" ## #????????????????# = | | ??????# # ## #????????????????# | | ??????# ###+#### #????????????????# | | ??????##+####+###??????# #????????????????### # | | ???????# #??? ##### #### #????????????????# | | ####### #### ?????????????????# | | # ?????????????????# | | + ?????????????????# ? | | # """ ##/#####??????????????# ?? | | # """??# #??????????????# ??? | | ?# """ # ##?????????????# ??? | | ?# # = ;##????????????# ???? | | ?# ]= !!! # #??????????????????? | | ?# == !!! # #??????????????????? | | ?# == !!! #%= @ ##?????????????????? | | ?# ## #################?? | | ?# #?? | | ?### #?? | | ???# #### ####### % =[ #?? | | ???# #??# #######!r! % % H #?? | | ???# #??# # #!!! """ / k +?? | | ####+#### # !#!! """ /g ######??????? | | != # # # """ g #???????